Workbook

Sheet Produktionsanlæg
A1: Produktionsanlæg | B1: Enhed | C1: Standard-levetid | D1: Samlet mængde per 31/12-2022 | E1: Samlet mængde per 31/12-2023 | F1: Samlet mængde per 31/12-2024 | G1: Afvigelse 2022-2023 | H1: Afvigelse 2023-2024 | I1: Bemærkninger
A3: Renseanlæg 1 | G3: =IF(D3="",IF(E3>0,"Ny data",IF(E3="","",0)),IF(D3=0,IF(E3=0,0,"Ny data"),(E3-D3)/D3)) ->  | H3: =IF(E3="",IF(F3>0,"Ny data",IF(F3="","",0)),IF(E3=0,IF(F3=0,0,"Ny data"),(F3-E3)/E3)) -> 
A4: Mindre renseanlæg
A5: Mindre renseanlæg < 5.000 PE | B5: PE | C5: 40 | D5: 5 | E5: 5 | F5: 5 | G5: 0 | H5: 0
A6: Renseanlæg >= 5.000 PE, Vandbehandling
A7: Indløb med riste, Konstruktioner | B7: PE | C7: 60 | D7: 45000 | E7: 45000 | F7: 45000 | G7: 0 | H7: 0
A8: Indløb med riste, Mek/EL | B8: PE | C8: 20 | D8: 45000 | E8: 45000 | F8: 45000 | G8: 0 | H8: 0
A9: Indløb med riste, SRO | B9: PE | C9: 10 | D9: 45000 | E9: 45000 | F9: 45000 | G9: 0 | H9: 0
A10: Sand- og fedtfang, Kontruktioner | B10: PE | C10: 60 | D10: 45000 | E10: 45000 | F10: 45000 | G10: 0 | H10: 0
A11: Sand- og fedtfang, Mek/EL | B11: PE | C11: 20 | D11: 45000 | E11: 45000 | F11: 45000 | G11: 0 | H11: 0
A12: Sand- og fedtfang, SRO | B12: PE | C12: 10 | D12: 45000 | E12: 45000 | F12: 45000 | G12: 0 | H12: 0
A13: Forklaring, Konstruktioner | B13: PE | C13: 60 | D13: 0 | E13: 0 | F13: 0 | G13: 0 | H13: 0
A14: Forklaring, Mek/EL | B14: PE | C14: 20 | D14: 0 | E14: 0 | F14: 0 | G14: 0 | H14: 0
A15: Forklaring, SRO | B15: PE | C15: 10 | D15: 0 | E15: 0 | F15: 0 | G15: 0 | H15: 0
A16: Beluftningstanke, Konstruktioner | B16: PE | C16: 60 | D16: 45000 | E16: 45000 | F16: 45000 | G16: 0 | H16: 0
A17: Beluftningstanke, Mek/EL | B17: PE | C17: 20 | D17: 45000 | E17: 45000 | F17: 45000 | G17: 0 | H17: 0
A18: Beluftningstanke, SRO | B18: PE | C18: 10 | D18: 45000 | E18: 45000 | F18: 45000 | G18: 0 | H18: 0
A19: Efterklaringstanke, Konstruktioner | B19: PE | C19: 60 | D19: 45000 | E19: 45000 | F19: 45000 | G19: 0 | H19: 0
A20: Efterklaringstanke, Mek/El | B20: PE | C20: 20 | D20: 45000 | E20: 45000 | F20: 45000 | G20: 0 | H20: 0
A21: Efterklaringstanke, SRO | B21: PE | C21: 10 | D21: 45000 | E21: 45000 | F21: 45000 | G21: 0 | H21: 0
A22: Efterbehandlingsanlæg (sandfilter), Konstruktioner | B22: PE | C22: 60 | D22: 0 | E22: 0 | F22: 0 | G22: 0 | H22: 0
A23: Efterbehandlingsanlæg (sandfilter), Mek/EL | B23: PE | C23: 20 | D23: 0 | E23: 0 | F23: 0 | G23: 0 | H23: 0
A24: Efterbehandlingsanlæg (sandfilter), SRO | B24: PE | C24: 10 | D24: 0 | E24: 0 | F24: 0 | G24: 0 | H24: 0
A25: Renseanlæg >= 5.000 PE, Slambehandling
A26: Forafvanding, slam, Konstruktion | B26: PE | C26: 60 | D26: 0 | E26: 0 | F26: 0 | G26: 0 | H26: 0
A27: Forafvanding, slam, Mek/EL | B27: PE | C27: 20 | D27: 0 | E27: 0 | F27: 0 | G27: 0 | H27: 0
A28: Forafvanding, slam, SRO | B28: PE | C28: 10 | D28: 0 | E28: 0 | F28: 0 | G28: 0 | H28: 0
A29: Rådnetanke, slam, Konstruktioner | B29: PE | C29: 60 | D29: 0 | E29: 0 | F29: 0 | G29: 0 | H29: 0
A30: Rådnetanke, slam, Mek/EL | B30: PE | C30: 20 | D30: 0 | E30: 0 | F30: 0 | G30: 0 | H30: 0
A31: Rådnetanke, slam, SRO | B31: PE | C31: 10 | D31: 0 | E31: 0 | F31: 0 | G31: 0 | H31: 0
A32: Gasdisponering, Konstruktioner | B32: PE | C32: 60 | D32: 0 | E32: 0 | F32: 0 | G32: 0 | H32: 0
A33: Gasdisponering, Mek/EL | B33: PE | C33: 20 | D33: 0 | E33: 0 | F33: 0 | G33: 0 | H33: 0
A34: Gasdisponering, SRO | B34: PE | C34: 10 | D34: 0 | E34: 0 | F34: 0 | G34: 0 | H34: 0
A35: Gasdisponering - elproduktionsanlæg, Konstruktioner | B35: PE | C35: 60 | D35: 0 | E35: 0 | F35: 0 | G35: 0 | H35: 0
A36: Gasdisponering - elproduktionsanlæg, Mek/EL | B36: PE | C36: 20 | D36: 0 | E36: 0 | F36: 0 | G36: 0 | H36: 0
A37: Gasdisponering - elproduktionsanlæg, SRO | B37: PE | C37: 10 | D37: 0 | E37: 0 | F37: 0 | G37: 0 | H37: 0
A38: Gasrensning - Aktivt kulfilter | B38: m3/t | C38: 15 | D38: 0 | E38: 0 | F38: 0 | G38: 0 | H38: 0
A39: Gasrensning - Biologisk skrubber | B39: m3/t | C39: 15 | D39: 0 | E39: 0 | F39: 0 | G39: 0 | H39: 0
A40: Opgraderingsanlæg - Membran | B40: m3/t | C40: 15 | D40: 0 | E40: 0 | F40: 0 | G40: 0 | H40: 0
A41: Varmeproduktionsanlæg | B41: m3/t | C41: 15 | D41: 0 | E41: 0 | F41: 0 | G41: 0 | H41: 0
A42: Slutafvanding, slam - lavteknologisk (slambede), Konstruktioner | B42: PE | C42: 60 | D42: 0 | E42: 0 | F42: 0 | G42: 0 | H42: 0
A43: Slutafvanding, slam - lavteknologisk (slambede), Mek/EL | B43: PE | C43: 20 | D43: 0 | E43: 0 | F43: 0 | G43: 0 | H43: 0
A44: Slutafvanding, slam - lavteknologisk (slambede), SRO | B44: PE | C44: 10 | D44: 0 | E44: 0 | F44: 0 | G44: 0 | H44: 0
A45: Slutafvanding, slam - højteknologisk (centrifuger), Konstruktioner | B45: PE | C45: 60 | D45: 45000 | E45: 45000 | F45: 45000 | G45: 0 | H45: 0
A46: Slutafvanding, slam - højteknologisk (centrifuger), Mek/El | B46: PE | C46: 20 | D46: 45000 | E46: 45000 | F46: 45000 | G46: 0 | H46: 0
A47: Slutafvanding, slam - højteknologisk (centrifuger), SRO | B47: PE | C47: 10 | D47: 45000 | E47: 45000 | F47: 45000 | G47: 0 | H47: 0
A48: Renseanlæg >= 5.000 PE, Slamdisponering
A49: Slutdisponering, slam - lavteknologisk (slammineralisering), Konstruktioner | B49: PE | C49: 60 | D49: 0 | E49: 0 | F49: 0 | G49: 0 | H49: 0
A50: Slutdisponering, slam - lavteknologisk (slammineralisering), Mek/EL | B50: PE | C50: 20 | D50: 0 | E50: 0 | F50: 0 | G50: 0 | H50: 0
A51: Slutdisponering, slam - lavteknologisk (slammineralisering), SRO | B51: PE | C51: 10 | D51: 0 | E51: 0 | F51: 0 | G51: 0 | H51: 0
A52: Slutdisponering, slam - højteknologisk (slamtørring), Konstruktioner | B52: PE | C52: 60 | D52: 0 | E52: 0 | F52: 0 | G52: 0 | H52: 0
A53: Slutdisponering, slam - højteknologisk (slamtørring), Mek/EL | B53: PE | C53: 20 | D53: 0 | E53: 0 | F53: 0 | G53: 0 | H53: 0
A54: Slutdisponering, slam - højteknologisk (slamtørring), SRO | B54: PE | C54: 10 | D54: 0 | E54: 0 | F54: 0 | G54: 0 | H54: 0
A55: Slutdisponering, slam - højteknologisk (slamtørring og -forbrænding), Konstruktioner | B55: PE | C55: 60 | D55: 0 | E55: 0 | F55: 0 | G55: 0 | H55: 0
A56: Slutdisponering, slam - højteknologisk (slamtørring og -forbrænding), Mek/EL | B56: PE | C56: 20 | D56: 0 | E56: 0 | F56: 0 | G56: 0 | H56: 0
A57: Slutdisponering, slam - højteknologisk (slamtørring og -forbrænding), SRO | B57: PE | C57: 10 | D57: 0 | E57: 0 | F57: 0 | G57: 0 | H57: 0
A58: Renseanlæg 2
A59: Mindre renseanlæg
A60: Mindre renseanlæg < 5.000 PE | B60: PE | C60: 40 | D60: 5 | E60: 5 | F60: 5 | G60: 0 | H60: 0
A61: Renseanlæg >= 5.000 PE, Vandbehandling
A62: Indløb med riste, Konstruktioner | B62: PE | C62: 60 | D62: 22000 | E62: 22000 | F62: 22000 | G62: 0 | H62: 0
A63: Indløb med riste, Mek/EL | B63: PE | C63: 20 | D63: 22000 | E63: 22000 | F63: 22000 | G63: 0 | H63: 0
A64: Indløb med riste, SRO | B64: PE | C64: 10 | D64: 22000 | E64: 22000 | F64: 22000 | G64: 0 | H64: 0
A65: Sand- og fedtfang, Kontruktioner | B65: PE | C65: 60 | D65: 22000 | E65: 22000 | F65: 22000 | G65: 0 | H65: 0
A66: Sand- og fedtfang, Mek/EL | B66: PE | C66: 20 | D66: 22000 | E66: 22000 | F66: 22000 | G66: 0 | H66: 0
A67: Sand- og fedtfang, SRO | B67: PE | C67: 10 | D67: 22000 | E67: 22000 | F67: 22000 | G67: =IF(D67="",IF(E67>0,"Ny data",IF(E67="","",0)),IF(D67=0,IF(E67=0,0,"Ny data"),(E67-D67)/D67)) -> 0 | H67: =IF(E67="",IF(F67>0,"Ny data",IF(F67="","",0)),IF(E67=0,IF(F67=0,0,"Ny data"),(F67-E67)/E67)) -> 0
A68: Forklaring, Konstruktioner | B68: PE | C68: 60 | D68: 0 | E68: 0 | F68: 0 | G68: 0 | H68: 0
A69: Forklaring, Mek/EL | B69: PE | C69: 20 | D69: 0 | E69: 0 | F69: 0 | G69: 0 | H69: 0
A70: Forklaring, SRO | B70: PE | C70: 10 | D70: 0 | E70: 0 | F70: 0 | G70: 0 | H70: 0
A71: Beluftningstanke, Konstruktioner | B71: PE | C71: 60 | D71: 22000 | E71: 22000 | F71: 22000 | G71: 0 | H71: 0
A72: Beluftningstanke, Mek/EL | B72: PE | C72: 20 | D72: 22000 | E72: 22000 | F72: 22000 | G72: 0 | H72: 0
A73: Beluftningstanke, SRO | B73: PE | C73: 10 | D73: 22000 | E73: 22000 | F73: 22000 | G73: 0 | H73: 0
A74: Efterklaringstanke, Konstruktioner | B74: PE | C74: 60 | D74: 22000 | E74: 22000 | F74: 22000 | G74: 0 | H74: 0
A75: Efterklaringstanke, Mek/El | B75: PE | C75: 20 | D75: 22000 | E75: 22000 | F75: 22000 | G75: 0 | H75: 0
A76: Efterklaringstanke, SRO | B76: PE | C76: 10 | D76: 22000 | E76: 22000 | F76: 22000 | G76: 0 | H76: 0
A77: Efterbehandlingsanlæg (sandfilter), Konstruktioner | B77: PE | C77: 60 | D77: 0 | E77: 0 | F77: 0 | G77: 0 | H77: 0
A78: Efterbehandlingsanlæg (sandfilter), Mek/EL | B78: PE | C78: 20 | D78: 0 | E78: 0 | F78: 0 | G78: 0 | H78: 0
A79: Efterbehandlingsanlæg (sandfilter), SRO | B79: PE | C79: 10 | D79: 0 | E79: 0 | F79: 0 | G79: 0 | H79: 0
A80: Renseanlæg >= 5.000 PE, Slambehandling
A81: Forafvanding, slam, Konstruktion | B81: PE | C81: 60 | D81: 0 | E81: 0 | F81: 0 | G81: 0 | H81: 0
A82: Forafvanding, slam, Mek/EL | B82: PE | C82: 20 | D82: 0 | E82: 0 | F82: 0 | G82: 0 | H82: 0
A83: Forafvanding, slam, SRO | B83: PE | C83: 10 | D83: 0 | E83: 0 | F83: 0 | G83: 0 | H83: 0
A84: Rådnetanke, slam, Konstruktioner | B84: PE | C84: 60 | D84: 0 | E84: 0 | F84: 0 | G84: 0 | H84: 0
A85: Rådnetanke, slam, Mek/EL | B85: PE | C85: 20 | D85: 0 | E85: 0 | F85: 0 | G85: 0 | H85: 0
A86: Rådnetanke, slam, SRO | B86: PE | C86: 10 | D86: 0 | E86: 0 | F86: 0 | G86: 0 | H86: 0
A87: Gasdisponering, Konstruktioner | B87: PE | C87: 60 | D87: 0 | E87: 0 | F87: 0 | G87: 0 | H87: 0
A88: Gasdisponering, Mek/EL | B88: PE | C88: 20 | D88: 0 | E88: 0 | F88: 0 | G88: 0 | H88: 0
A89: Gasdisponering, SRO | B89: PE | C89: 10 | D89: 0 | E89: 0 | F89: 0 | G89: 0 | H89: 0
A90: Gasdisponering - elproduktionsanlæg, Konstruktioner | B90: PE | C90: 60 | D90: 0 | E90: 0 | F90: 0 | G90: 0 | H90: 0
A91: Gasdisponering - elproduktionsanlæg, Mek/EL | B91: PE | C91: 20 | D91: 0 | E91: 0 | F91: 0 | G91: 0 | H91: 0
A92: Gasdisponering - elproduktionsanlæg, SRO | B92: PE | C92: 10 | D92: 0 | E92: 0 | F92: 0 | G92: 0 | H92: 0
A93: Gasrensning - Aktivt kulfilter | B93: m3/t | C93: 15 | D93: 0 | E93: 0 | F93: 0 | G93: 0 | H93: 0
A94: Gasrensning - Biologisk skrubber | B94: m3/t | C94: 15 | D94: 0 | E94: 0 | F94: 0 | G94: 0 | H94: 0
A95: Opgraderingsanlæg - Membran | B95: m3/t | C95: 15 | D95: 0 | E95: 0 | F95: 0 | G95: 0 | H95: 0
A96: Varmeproduktionsanlæg | B96: m3/t | C96: 15 | D96: 0 | E96: 0 | F96: 0 | G96: 0 | H96: 0
A97: Slutafvanding, slam - lavteknologisk (slambede), Konstruktioner | B97: PE | C97: 60 | D97: 0 | E97: 0 | F97: 0 | G97: 0 | H97: 0
A98: Slutafvanding, slam - lavteknologisk (slambede), Mek/EL | B98: PE | C98: 20 | D98: 0 | E98: 0 | F98: 0 | G98: 0 | H98: 0
A99: Slutafvanding, slam - lavteknologisk (slambede), SRO | B99: PE | C99: 10 | D99: 0 | E99: 0 | F99: 0 | G99: 0 | H99: 0
A100: Slutafvanding, slam - højteknologisk (centrifuger), Konstruktioner | B100: PE | C100: 60 | D100: 22000 | E100: 22000 | F100: 22000 | G100: 0 | H100: 0
A101: Slutafvanding, slam - højteknologisk (centrifuger), Mek/El | B101: PE | C101: 20 | D101: 22000 | E101: 22000 | F101: 22000 | G101: 0 | H101: 0
A102: Slutafvanding, slam - højteknologisk (centrifuger), SRO | B102: PE | C102: 10 | D102: 22000 | E102: 22000 | F102: 22000 | G102: 0 | H102: 0
A103: Renseanlæg >= 5.000 PE, Slamdisponering
A104: Slutdisponering, slam - lavteknologisk (slammineralisering), Konstruktioner | B104: PE | C104: 60 | D104: 0 | E104: 0 | F104: 0 | G104: 0 | H104: 0
A105: Slutdisponering, slam - lavteknologisk (slammineralisering), Mek/EL | B105: PE | C105: 20 | D105: 0 | E105: 0 | F105: 0 | G105: 0 | H105: 0
A106: Slutdisponering, slam - lavteknologisk (slammineralisering), SRO | B106: PE | C106: 10 | D106: 0 | E106: 0 | F106: 0 | G106: 0 | H106: 0
A107: Slutdisponering, slam - højteknologisk (slamtørring), Konstruktioner | B107: PE | C107: 60 | D107: 0 | E107: 0 | F107: 0 | G107: 0 | H107: 0
A108: Slutdisponering, slam - højteknologisk (slamtørring), Mek/EL | B108: PE | C108: 20 | D108: 0 | E108: 0 | F108: 0 | G108: 0 | H108: 0
A109: Slutdisponering, slam - højteknologisk (slamtørring), SRO | B109: PE | C109: 10 | D109: 0 | E109: 0 | F109: 0 | G109: 0 | H109: 0
A110: Slutdisponering, slam - højteknologisk (slamtørring og -forbrænding), Konstruktioner | B110: PE | C110: 60 | D110: 0 | E110: 0 | F110: 0 | G110: 0 | H110: 0
A111: Slutdisponering, slam - højteknologisk (slamtørring og -forbrænding), Mek/EL | B111: PE | C111: 20 | D111: 0 | E111: 0 | F111: 0 | G111: 0 | H111: 0
A112: Slutdisponering, slam - højteknologisk (slamtørring og -forbrænding), SRO | B112: PE | C112: 10 | D112: 0 | E112: 0 | F112: 0 | G112: 0 | H112: 0
A113: Renseanlæg 3
A114: Mindre renseanlæg
A115: Mindre renseanlæg < 5.000 PE | B115: PE | C115: 40 | D115: 5 | E115: 5 | F115: 5 | G115: 0 | H115: 0
A116: Renseanlæg >= 5.000 PE, Vandbehandling
A117: Indløb med riste, Konstruktioner | B117: PE | C117: 60 | D117: 1000 | G117: -1 | I117: Renseanlæg nedlagt
A118: Indløb med riste, Mek/EL | B118: PE | C118: 20 | D118: 1000 | G118: -1 | I118: Renseanlæg nedlagt
A119: Indløb med riste, SRO | B119: PE | C119: 10 | D119: 1000 | G119: -1 | I119: Renseanlæg nedlagt
A120: Sand- og fedtfang, Kontruktioner | B120: PE | C120: 60 | D120: 1000 | G120: -1 | I120: Renseanlæg nedlagt
A121: Sand- og fedtfang, Mek/EL | B121: PE | C121: 20 | D121: 1000 | G121: -1 | I121: Renseanlæg nedlagt
A122: Sand- og fedtfang, SRO | B122: PE | C122: 10 | D122: 1000 | G122: -1 | I122: Renseanlæg nedlagt
A123: Forklaring, Konstruktioner | B123: PE | C123: 60 | D123: 0 | E123: 0 | F123: 0 | G123: 0 | H123: 0 | I123: Renseanlæg nedlagt
A124: Forklaring, Mek/EL | B124: PE | C124: 20 | D124: 0 | E124: 0 | F124: 0 | G124: 0 | H124: 0 | I124: Renseanlæg nedlagt
A125: Forklaring, SRO | B125: PE | C125: 10 | D125: 0 | E125: 0 | G125: 0 | H125: 0 | I125: Renseanlæg nedlagt
A126: Beluftningstanke, Konstruktioner | B126: PE | C126: 60 | D126: 1000 | G126: -1 | I126: Renseanlæg nedlagt
A127: Beluftningstanke, Mek/EL | B127: PE | C127: 20 | D127: 1000 | G127: -1 | I127: Renseanlæg nedlagt
A128: Beluftningstanke, SRO | B128: PE | C128: 10 | D128: 1000 | G128: -1 | I128: Renseanlæg nedlagt
A129: Efterklaringstanke, Konstruktioner | B129: PE | C129: 60 | D129: 0 | E129: 0 | G129: 0 | H129: 0 | I129: Renseanlæg nedlagt
A130: Efterklaringstanke, Mek/El | B130: PE | C130: 20 | D130: 0 | E130: 0 | F130: 0 | G130: 0 | H130: 0 | I130: Renseanlæg nedlagt
A131: Efterklaringstanke, SRO | B131: PE | C131: 10 | D131: 0 | E131: 0 | F131: 0 | G131: =IF(D131="",IF(E131>0,"Ny data",IF(E131="","",0)),IF(D131=0,IF(E131=0,0,"Ny data"),(E131-D131)/D131)) -> 0 | H131: =IF(E131="",IF(F131>0,"Ny data",IF(F131="","",0)),IF(E131=0,IF(F131=0,0,"Ny data"),(F131-E131)/E131)) -> 0 | I131: Renseanlæg nedlagt
A132: Efterbehandlingsanlæg (sandfilter), Konstruktioner | B132: PE | C132: 60 | D132: 0 | E132: 0 | F132: 0 | G132: 0 | H132: 0 | I132: Renseanlæg nedlagt
A133: Efterbehandlingsanlæg (sandfilter), Mek/EL | B133: PE | C133: 20 | D133: 0 | E133: 0 | F133: 0 | G133: 0 | H133: 0 | I133: Renseanlæg nedlagt
A134: Efterbehandlingsanlæg (sandfilter), SRO | B134: PE | C134: 10 | D134: 0 | E134: 0 | F134: 0 | G134: 0 | H134: 0 | I134: Renseanlæg nedlagt
A135: Renseanlæg >= 5.000 PE, Slambehandling
A136: Forafvanding, slam, Konstruktion | B136: PE | C136: 60 | D136: 0 | E136: 0 | F136: 0 | G136: 0 | H136: 0
A137: Forafvanding, slam, Mek/EL | B137: PE | C137: 20 | D137: 0 | E137: 0 | F137: 0 | G137: 0 | H137: 0
A138: Forafvanding, slam, SRO | B138: PE | C138: 10 | D138: 0 | E138: 0 | F138: 0 | G138: 0 | H138: 0
A139: Rådnetanke, slam, Konstruktioner | B139: PE | C139: 60 | D139: 0 | E139: 0 | F139: 0 | G139: 0 | H139: 0
A140: Rådnetanke, slam, Mek/EL | B140: PE | C140: 20 | D140: 0 | E140: 0 | F140: 0 | G140: 0 | H140: 0
A141: Rådnetanke, slam, SRO | B141: PE | C141: 10 | D141: 0 | E141: 0 | F141: 0 | G141: 0 | H141: 0
A142: Gasdisponering, Konstruktioner | B142: PE | C142: 60 | D142: 0 | E142: 0 | F142: 0 | G142: 0 | H142: 0
A143: Gasdisponering, Mek/EL | B143: PE | C143: 20 | D143: 0 | E143: 0 | F143: 0 | G143: 0 | H143: 0
A144: Gasdisponering, SRO | B144: PE | C144: 10 | D144: 0 | E144: 0 | F144: 0 | G144: 0 | H144: 0
A145: Gasdisponering - elproduktionsanlæg, Konstruktioner | B145: PE | C145: 60 | D145: 0 | E145: 0 | F145: 0 | G145: 0 | H145: 0
A146: Gasdisponering - elproduktionsanlæg, Mek/EL | B146: PE | C146: 20 | D146: 0 | E146: 0 | F146: 0 | G146: 0 | H146: 0
A147: Gasdisponering - elproduktionsanlæg, SRO | B147: PE | C147: 10 | D147: 0 | E147: 0 | F147: 0 | G147: 0 | H147: 0
A148: Gasrensning - Aktivt kulfilter | B148: m3/t | C148: 15 | D148: 0 | E148: 0 | F148: 0 | G148: 0 | H148: 0
A149: Gasrensning - Biologisk skrubber | B149: m3/t | C149: 15 | D149: 0 | E149: 0 | F149: 0 | G149: 0 | H149: 0
A150: Opgraderingsanlæg - Membran | B150: m3/t | C150: 15 | D150: 0 | E150: 0 | F150: 0 | G150: 0 | H150: 0
A151: Varmeproduktionsanlæg | B151: m3/t | C151: 15 | D151: 0 | E151: 0 | F151: 0 | G151: 0 | H151: 0
A152: Slutafvanding, slam - lavteknologisk (slambede), Konstruktioner | B152: PE | C152: 60 | D152: 0 | E152: 0 | F152: 0 | G152: 0 | H152: 0
A153: Slutafvanding, slam - lavteknologisk (slambede), Mek/EL | B153: PE | C153: 20 | D153: 0 | E153: 0 | F153: 0 | G153: 0 | H153: 0
A154: Slutafvanding, slam - lavteknologisk (slambede), SRO | B154: PE | C154: 10 | D154: 0 | E154: 0 | F154: 0 | G154: 0 | H154: 0
A155: Slutafvanding, slam - højteknologisk (centrifuger), Konstruktioner | B155: PE | C155: 60 | D155: 0 | E155: 0 | F155: 0 | G155: 0 | H155: 0
A156: Slutafvanding, slam - højteknologisk (centrifuger), Mek/El | B156: PE | C156: 20 | D156: 0 | E156: 0 | F156: 0 | G156: 0 | H156: 0
A157: Slutafvanding, slam - højteknologisk (centrifuger), SRO | B157: PE | C157: 10 | D157: 0 | E157: 0 | F157: 0 | G157: 0 | H157: 0
A158: Renseanlæg >= 5.000 PE, Slamdisponering
A159: Slutdisponering, slam - lavteknologisk (slammineralisering), Konstruktioner | B159: PE | C159: 60 | D159: 0 | E159: 0 | F159: 0 | G159: 0 | H159: 0
A160: Slutdisponering, slam - lavteknologisk (slammineralisering), Mek/EL | B160: PE | C160: 20 | D160: 0 | E160: 0 | F160: 0 | G160: 0 | H160: 0
A161: Slutdisponering, slam - lavteknologisk (slammineralisering), SRO | B161: PE | C161: 10 | D161: 0 | E161: 0 | F161: 0 | G161: 0 | H161: 0
A162: Slutdisponering, slam - højteknologisk (slamtørring), Konstruktioner | B162: PE | C162: 60 | D162: 0 | E162: 0 | F162: 0 | G162: 0 | H162: 0
A163: Slutdisponering, slam - højteknologisk (slamtørring), Mek/EL | B163: PE | C163: 20 | D163: 0 | E163: 0 | F163: 0 | G163: 0 | H163: 0
A164: Slutdisponering, slam - højteknologisk (slamtørring), SRO | B164: PE | C164: 10 | D164: 0 | E164: 0 | F164: 0 | G164: 0 | H164: 0
A165: Slutdisponering, slam - højteknologisk (slamtørring og -forbrænding), Konstruktioner | B165: PE | C165: 60 | D165: 0 | E165: 0 | F165: 0 | G165: 0 | H165: 0
A166: Slutdisponering, slam - højteknologisk (slamtørring og -forbrænding), Mek/EL | B166: PE | C166: 20 | D166: 0 | E166: 0 | F166: 0 | G166: 0 | H166: 0
A167: Slutdisponering, slam - højteknologisk (slamtørring og -forbrænding), SRO | B167: PE | C167: 10 | D167: 0 | E167: 0 | F167: 0 | G167: 0 | H167: 0
A168: Renseanlæg 4
A169: Mindre renseanlæg
A170: Mindre renseanlæg < 5.000 PE | B170: PE | C170: 40 | D170: 5 | E170: 5 | F170: 5 | G170: 0 | H170: 0
A171: Renseanlæg >= 5.000 PE, Vandbehandling
A172: Indløb med riste, Konstruktioner | B172: PE | C172: 60 | D172: 6000 | E172: 6000 | F172: 6000 | G172: 0 | H172: 0
A173: Indløb med riste, Mek/EL | B173: PE | C173: 20 | D173: 6000 | E173: 6000 | F173: 6000 | G173: 0 | H173: 0
A174: Indløb med riste, SRO | B174: PE | C174: 10 | D174: 6000 | E174: 6000 | F174: 6000 | G174: 0 | H174: 0
A175: Sand- og fedtfang, Kontruktioner | B175: PE | C175: 60 | D175: 6000 | E175: 6000 | F175: 6000 | G175: 0 | H175: 0
A176: Sand- og fedtfang, Mek/EL | B176: PE | C176: 20 | D176: 6000 | E176: 6000 | F176: 6000 | G176: 0 | H176: 0
A177: Sand- og fedtfang, SRO | B177: PE | C177: 10 | D177: 6000 | E177: 6000 | F177: 6000 | G177: 0 | H177: 0
A178: Forklaring, Konstruktioner | B178: PE | C178: 60 | D178: 0 | E178: 0 | F178: 0 | G178: 0 | H178: 0
A179: Forklaring, Mek/EL | B179: PE | C179: 20 | D179: 0 | E179: 0 | F179: 0 | G179: 0 | H179: 0
A180: Forklaring, SRO | B180: PE | C180: 10 | D180: 0 | E180: 0 | F180: 0 | G180: 0 | H180: 0
A181: Beluftningstanke, Konstruktioner | B181: PE | C181: 60 | D181: 6000 | E181: 6000 | F181: 6000 | G181: 0 | H181: 0
A182: Beluftningstanke, Mek/EL | B182: PE | C182: 20 | D182: 6000 | E182: 6000 | F182: 6000 | G182: 0 | H182: 0
A183: Beluftningstanke, SRO | B183: PE | C183: 10 | D183: 6000 | E183: 6000 | F183: 6000 | G183: 0 | H183: 0
A184: Efterklaringstanke, Konstruktioner | B184: PE | C184: 60 | D184: 6000 | E184: 6000 | F184: 6000 | G184: 0 | H184: 0
A185: Efterklaringstanke, Mek/El | B185: PE | C185: 20 | D185: 6000 | E185: 6000 | F185: 6000 | G185: 0 | H185: 0
A186: Efterklaringstanke, SRO | B186: PE | C186: 10 | D186: 6000 | E186: 6000 | F186: 6000 | G186: 0 | H186: 0
A187: Efterbehandlingsanlæg (sandfilter), Konstruktioner | B187: PE | C187: 60 | D187: 0 | E187: 0 | F187: 0 | G187: 0 | H187: 0
A188: Efterbehandlingsanlæg (sandfilter), Mek/EL | B188: PE | C188: 20 | D188: 0 | E188: 0 | F188: 0 | G188: 0 | H188: 0
A189: Efterbehandlingsanlæg (sandfilter), SRO | B189: PE | C189: 10 | D189: 0 | E189: 0 | F189: 0 | G189: 0 | H189: 0
A190: Renseanlæg >= 5.000 PE, Slambehandling
A191: Forafvanding, slam, Konstruktion | B191: PE | C191: 60 | D191: 0 | E191: 0 | F191: 0 | G191: 0 | H191: 0
A192: Forafvanding, slam, Mek/EL | B192: PE | C192: 20 | D192: 0 | E192: 0 | F192: 0 | G192: 0 | H192: 0
A193: Forafvanding, slam, SRO | B193: PE | C193: 10 | D193: 0 | E193: 0 | F193: 0 | G193: 0 | H193: 0
A194: Rådnetanke, slam, Konstruktioner | B194: PE | C194: 60 | D194: 0 | E194: 0 | F194: 0 | G194: 0 | H194: 0
A195: Rådnetanke, slam, Mek/EL | B195: PE | C195: 20 | D195: 0 | E195: 0 | F195: 0 | G195: =IF(D195="",IF(E195>0,"Ny data",IF(E195="","",0)),IF(D195=0,IF(E195=0,0,"Ny data"),(E195-D195)/D195)) -> 0 | H195: =IF(E195="",IF(F195>0,"Ny data",IF(F195="","",0)),IF(E195=0,IF(F195=0,0,"Ny data"),(F195-E195)/E195)) -> 0
A196: Rådnetanke, slam, SRO | B196: PE | C196: 10 | D196: 0 | E196: 0 | F196: 0 | G196: 0 | H196: 0
A197: Gasdisponering, Konstruktioner | B197: PE | C197: 60 | D197: 0 | E197: 0 | F197: 0 | G197: 0 | H197: 0
A198: Gasdisponering, Mek/EL | B198: PE | C198: 20 | D198: 0 | E198: 0 | F198: 0 | G198: 0 | H198: 0
A199: Gasdisponering, SRO | B199: PE | C199: 10 | D199: 0 | E199: 0 | F199: 0 | G199: 0 | H199: 0
A200: Gasdisponering - elproduktionsanlæg, Konstruktioner | B200: PE | C200: 60 | D200: 0 | E200: 0 | F200: 0 | G200: 0 | H200: 0
A201: Gasdisponering - elproduktionsanlæg, Mek/EL | B201: PE | C201: 20 | D201: 0 | E201: 0 | F201: 0 | G201: 0 | H201: 0
... 351 more rows

Sheet Distributionsanlæg
A1: Distributionsanlæg | B1: Enhed | C1: Standard-levetid | D1: Samlet mængde per 31/12-2022 | E1: Samlet mængde per 31/12-2023 | F1: Samlet mængde per 31/12-2024 | G1: Afvigelse 2022-2023 | H1: Afvigelse 2023-2024 | I1: Bemærkninger
A3: Ledningsnet - Land | G3: =IF(D3="",IF(E3>0,"Ny data",IF(E3="","",0)),IF(D3=0,IF(E3=0,0,"Ny data"),(E3-D3)/D3)) ->  | H3: =IF(E3="",IF(F3>0,"Ny data",IF(F3="","",0)),IF(E3=0,IF(F3=0,0,"Ny data"),(F3-E3)/E3)) -> 
A4: Ledningsnet ≤ Ø 200 mm | B4: meter | C4: 75 | D4: 360157.2835 | E4: 348563.2463 | F4: 353212.7041 | G4: -0.03219159443 | H4: 0.01333892155
A5: Ø 200 mm < Ledningsnet ≤ Ø 500 mm | B5: meter | C5: 75 | D5: 94552.86501 | E5: 118396.3987 | F5: 119132.3432 | G5: 0.2521714565 | H5: 0.006215936868 | I5: Forkert kategorisering af dimensioner i tidligere indberetning
A6: Ø 500 mm < Ledningsnet ≤ Ø 800 mm | B6: meter | C6: 75 | D6: 15063.14461 | E6: 14775.98893 | F6: 14874.57551 | G6: -0.0190634614 | H6: 0.006672079849
A7: Ø 800 mm < Ledningsnet ≤ Ø 1000 mm | B7: meter | C7: 75 | D7: 1241.233689 | E7: 1154.716986 | F7: 1163.715817 | G7: -0.06970218782 | H7: 0.007793105822
A8: Ø 1000 mm < Ledningsnet ≤ Ø 1200 mm | B8: meter | C8: 75 | D8: 605.9162131 | E8: 647.6211939 | F8: 647.6211939 | G8: 0.06882961682 | H8: 0
A9: Ø 1200 mm < Ledningsnet ≤ Ø 1600 mm | B9: meter | C9: 75 | D9: 711.6611664 | E9: 674.5171159 | F9: 674.5171159 | G9: -0.0521934486 | H9: 0
A10: Ledningsnet > Ø 1600 mm (rørbassiner og transportledninger) | B10: meter | C10: 75 | D10: 0 | E10: 0 | F10: 0 | G10: 0 | H10: 0
A11: Strømpeforing ≤ Ø 200 mm | B11: meter | C11: 50 | D11: 864.014724 | E11: 977.2391811 | F11: 977.764209 | G11: 0.1310445921 | H11: 0.0005372562502
A12: Strømpeforing Ø 200 mm < Ledningsnet ≤ Ø 500 mm | B12: meter | C12: 50 | D12: 238.5984904 | E12: 269.8655323 | F12: 270.0105192 | G12: 0.1310445921 | H12: 0.0005372562502
A13: Strømpeforing Ø 500 mm < Ledningsnet ≤ Ø 800 mm | B13: meter | C13: 50 | D13: 554.0473236 | E13: 626.6522292 | F13: 626.988902 | G13: 0.1310445921 | H13: 0.0005372562502
A14: Strømpeforing Ø 800 mm < Ledningsnet ≤ Ø 1000 mm | B14: meter | C14: 50 | D14: 0 | G14: 0
A15: Strømpeforing Ø 1000 mm < Ledningsnet ≤ Ø 1200 mm | B15: meter | C15: 50 | D15: 0 | G15: 0
A16: Strømpeforing Ø 1200 mm < Ledningsnet ≤ Ø 1600 mm | B16: meter | C16: 50 | D16: 0 | G16: 0
A17: Ledningsnet - By
A18: Ledningsnet ≤ Ø 200 mm | B18: meter | C18: 75 | D18: 449481.6546 | E18: =438844.739361338+238 -> 439082.7394 | F18: =444647.331947738+238 -> 444885.3319 | G18: -0.02313534956 | H18: 0.01321526006
A19: Ø 200 mm < Ledningsnet ≤ Ø 500 mm | B19: meter | C19: 75 | D19: 180883.2375 | E19: =226443.826911375+53 -> 226496.8269 | F19: =227851.716888223+53 -> 227904.7169 | G19: 0.2521714565 | H19: 0.006215936868 | I19: Forkert kategorisering af dimensioner i tidligere indberetning
A20: Ø 500 mm < Ledningsnet ≤ Ø 800 mm | B20: meter | C20: 75 | D20: 44904.2781 | E20: 44048.24712 | F20: 44342.14055 | G20: -0.0190634614 | H20: 0.006672079849
A21: Ø 800 mm < Ledningsnet ≤ Ø 1000 mm | B21: meter | C21: 75 | D21: 9092.758942 | E21: =8356.97375068646+102 -> 8458.973751 | F21: =8422.89542827396+102 -> 8524.895428 | G21: -0.06970218782 | H21: 0.007793105822
A22: Ø 1000 mm < Ledningsnet ≤ Ø 1200 mm | B22: meter | C22: 75 | D22: 2586.590226 | E22: 2764.62424 | F22: 2764.62424 | G22: 0.06882961682 | H22: 0
A23: Ø 1200 mm < Ledningsnet ≤ Ø 1600 mm | B23: meter | C23: 75 | D23: 2959.680157 | E23: 2805.204243 | F23: 2805.204243 | G23: -0.0521934486 | H23: 0
A24: Ledningsnet > Ø 1600 mm (rørbassiner og transportledninger) | B24: meter | C24: 75 | D24: 22.07412844 | E24: 78.75 | F24: 78.75 | G24: 2.56752477 | H24: 0 | I24: Ikke væsentligt - lille tal
A25: Strømpeforing ≤ Ø 200 mm | B25: meter | C25: 50 | D25: 7523.325972 | E25: 8509.217156 | F25: 8513.788786 | G25: 0.1310445921 | H25: 0.0005372562502
A26: Strømpeforing Ø 200 mm < Ledningsnet ≤ Ø 500 mm | B26: meter | C26: 50 | D26: 6451.646637 | E26: 7297.100039 | F26: 7301.020452 | G26: 0.1310445921 | H26: 0.0005372562502
A27: Strømpeforing Ø 500 mm < Ledningsnet ≤ Ø 800 mm | B27: meter | C27: 50 | D27: 655.9026456 | E27: 741.8551402 | F27: 742.2537065 | G27: 0.1310445921 | H27: 0.0005372562502
A28: Strømpeforing Ø 800 mm < Ledningsnet ≤ Ø 1000 mm | B28: meter | C28: 50 | D28: 412.6519279 | E28: 466.7277315 | F28: 466.9784839 | G28: 0.1310445921 | H28: 0.0005372562502
A29: Strømpeforing Ø 1000 mm < Ledningsnet ≤ Ø 1200 mm | B29: meter | C29: 50 | D29: 118.406464 | E29: 133.9229908 | F29: 133.9949417 | G29: 0.1310445921 | H29: 0.0005372562502
A30: Strømpeforing Ø 1200 mm < Ledningsnet ≤ Ø 1600 mm | B30: meter | C30: 50 | D30: 0 | G30: 0
A31: Ledningsnet - City
A32: Ledningsnet ≤ Ø 200 mm | B32: meter | C32: 75 | D32: 238 | G32: -1 | I32: Ændret zone
A33: Ø 200 mm < Ledningsnet ≤ Ø 500 mm | B33: meter | C33: 75 | D33: 53 | G33: -1 | I33: Ændret zone
A34: Ø 500 mm < Ledningsnet ≤ Ø 800 mm | B34: meter | C34: 75 | D34: 0 | G34: 0 | I34: Ændret zone
A35: Ø 800 mm < Ledningsnet ≤ Ø 1000 mm | B35: meter | C35: 75 | D35: 102 | G35: -1 | I35: Ændret zone
A36: Ø 1000 mm < Ledningsnet ≤ Ø 1200 mm | B36: meter | C36: 75 | D36: 0 | G36: 0
A37: Ø 1200 mm < Ledningsnet ≤ Ø 1600 mm | B37: meter | C37: 75 | D37: 0 | G37: 0
A38: Ledningsnet > Ø 1600 mm (rørbassiner og transportledninger) | B38: meter | C38: 75 | D38: 0 | G38: 0
A39: Strømpeforing ≤ Ø 200 mm | B39: meter | C39: 50 | D39: 0 | G39: 0
A40: Strømpeforing Ø 200 mm < Ledningsnet ≤ Ø 500 mm | B40: meter | C40: 50 | D40: 0 | G40: 0
A41: Strømpeforing Ø 500 mm < Ledningsnet ≤ Ø 800 mm | B41: meter | C41: 50 | D41: 0 | G41: 0
A42: Strømpeforing Ø 800 mm < Ledningsnet ≤ Ø 1000 mm | B42: meter | C42: 50 | D42: 0 | G42: 0
A43: Strømpeforing Ø 1000 mm < Ledningsnet ≤ Ø 1200 mm | B43: meter | C43: 50 | D43: 0 | G43: 0
A44: Strømpeforing Ø 1200 mm < Ledningsnet ≤ Ø 1600 mm | B44: meter | C44: 50 | D44: 0 | G44: 0
A45: Ledningsnet - Indre city
A46: Ledningsnet ≤ Ø 200 mm | B46: meter | C46: 75 | D46: 0 | G46: 0
A47: Ø 200 mm < Ledningsnet ≤ Ø 500 mm | B47: meter | C47: 75 | D47: 0 | G47: 0
A48: Ø 500 mm < Ledningsnet ≤ Ø 800 mm | B48: meter | C48: 75 | D48: 0 | G48: 0
A49: Ø 800 mm < Ledningsnet ≤ Ø 1000 mm | B49: meter | C49: 75 | D49: 0 | G49: 0
A50: Ø 1000 mm < Ledningsnet ≤ Ø 1200 mm | B50: meter | C50: 75 | D50: 0 | G50: 0
A51: Ø 1200 mm < Ledningsnet ≤ Ø 1600 mm | B51: meter | C51: 75 | D51: 0 | G51: 0
A52: Ledningsnet > Ø 1600 mm (rørbassiner og transportledninger) | B52: meter | C52: 75 | D52: 0 | G52: 0
A53: Strømpeforing ≤ Ø 200 mm | B53: meter | C53: 50 | D53: 0 | G53: 0
A54: Strømpeforing Ø 200 mm < Ledningsnet ≤ Ø 500 mm | B54: meter | C54: 50 | D54: 0 | G54: 0
A55: Strømpeforing Ø 500 mm < Ledningsnet ≤ Ø 800 mm | B55: meter | C55: 50 | D55: 0 | G55: 0
A56: Strømpeforing Ø 800 mm < Ledningsnet ≤ Ø 1000 mm | B56: meter | C56: 50 | D56: 0 | G56: 0
A57: Strømpeforing Ø 1000 mm < Ledningsnet ≤ Ø 1200 mm | B57: meter | C57: 50 | D57: 0 | G57: 0
A58: Strømpeforing Ø 1200 mm < Ledningsnet ≤ Ø 1600 mm | B58: meter | C58: 50 | D58: 0 | G58: 0
A59: Brønde og stik, ledningsnet - Land
A60: Brønde | B60: stk. | C60: 75 | D60: =4183+112 -> 4295 | E60: 4296.644334 | F60: 4347.618683 | G60: 0.000382848392 | H60: 0.01186375813
A61: Stik | B61: stk. | C61: 75 | D61: =C61+64 -> 139 | E61: 10305.59648 | F61: 10508.56899 | G61: 73.14098184 | H61: 0.01969536787 | I61: Fejl i capex ark, tallet er væssentligt højere i 2022, derfor ingen difference
A62: Brønde og stik, ledningsnet - By
A63: Brønde | B63: stk. | C63: 75 | D63: =11302-D66+75 -> 11356 | E63: 11360.34763 | F63: 11495.12404 | G63: 0.000382848392 | H63: 0.01186375813
A64: Stik | B64: stk. | C64: 75 | D64: =C64+298 -> 373 | E64: 15219.40407 | F64: 15519.15583 | G64: 39.80269188 | H64: 0.01969536787 | I64: Fejl i capex ark, tallet er væssentligt højere i 2022, derfor ingen difference
A65: Brønde og stik, ledningsnet - City
A66: Brønde | B66: stk. | C66: 75 | D66: 21 | E66: 21.00803982 | F66: 21.25727412 | G66: 0.000382848392 | H66: 0.01186375813
A67: Stik | B67: stk. | C67: 75 | D67: 14 | E67: 14.27517619 | F67: 14.27517619 | G67: =IF(D67="",IF(E67>0,"Ny data",IF(E67="","",0)),IF(D67=0,IF(E67=0,0,"Ny data"),(E67-D67)/D67)) -> 0.01965544244 | H67: =IF(E67="",IF(F67>0,"Ny data",IF(F67="","",0)),IF(E67=0,IF(F67=0,0,"Ny data"),(F67-E67)/E67)) -> 0
A68: Brønde og stik, ledningsnet - Indre city
A69: Brønde | B69: stk. | C69: 75 | D69: 0 | G69: 0
A70: Stik | B70: stk. | C70: 75 | D70: 0 | G70: 0
A71: Små pumpestationer (<100 l/s) inkl. SRO-anlæg - Land
A72: Tryksatte minipumpestationer (husstandssystemer) | B72: stk. | C72: 30 | D72: 382 | E72: 395 | F72: 395 | G72: 0.03403141361 | H72: 0
A73: Pumpestationer i brønde (< 6,25 m2), Konstruktioner | B73: stk. | C73: 50 | D73: 84 | E73: 85 | F73: 85 | G73: 0.0119047619 | H73: 0
A74: Pumpestationer i brønde (< 6,25 m2), Mek/EL | B74: stk. | C74: 20 | D74: 168 | E74: 151 | F74: 151 | G74: -0.1011904762 | H74: 0
A75: Pumpestationer i brønde (< 6,25 m2), SRO | B75: stk. | C75: 10 | D75: 84 | E75: 85 | F75: 85 | G75: 0.0119047619 | H75: 0
A76: Pumpestationer m. overbygning (< 20 m2), Konstruktioner | B76: stk. | C76: 50 | D76: 0 | G76: 0
A77: Pumpestationer m. overbygning (< 20 m2), Mek/EL | B77: stk. | C77: 20 | D77: 0 | G77: 0
A78: Pumpestationer m. overbygning (< 20 m2), SRO | B78: stk. | C78: 10 | D78: 0 | G78: 0
A79: Pumpestationer i underjordiske bygværker (<50 m2), Konstruktioner | B79: stk. | C79: 50 | D79: 0 | G79: 0
A80: Pumpestationer i underjordiske bygværker (<50 m2), Mek/El | B80: stk. | C80: 20 | D80: 0 | G80: 0
A81: Pumpestationer i underjordiske bygværker (<50 m2), SRO | B81: stk. | C81: 10 | D81: 0 | G81: 0
A82: Små pumpestationer (<100 l/s) inkl. SRO-anlæg - By
A83: Tryksatte minipumpestationer (husstandssystemer) | B83: stk. | C83: 30 | D83: 8 | E83: 8 | F83: 8 | G83: 0 | H83: 0
A84: Pumpestationer i brønde (< 6,25 m2), Konstruktioner | B84: stk. | C84: 50 | D84: 175 | E84: 181 | F84: 189 | G84: 0.03428571429 | H84: 0.04419889503
A85: Pumpestationer i brønde (< 6,25 m2), Mek/EL | B85: stk. | C85: 20 | D85: 244 | E85: 254 | F85: 270 | G85: 0.04098360656 | H85: 0.06299212598
A86: Pumpestationer i brønde (< 6,25 m2), SRO | B86: stk. | C86: 10 | D86: 175 | E86: 181 | F86: 189 | G86: 0.03428571429 | H86: 0.04419889503
A87: Pumpestationer m. overbygning (< 20 m2), Konstruktioner | B87: stk. | C87: 50 | D87: 0 | G87: 0
A88: Pumpestationer m. overbygning (< 20 m2), Mek/EL | B88: stk. | C88: 20 | D88: 0 | G88: 0
A89: Pumpestationer m. overbygning (< 20 m2), SRO | B89: stk. | C89: 10 | D89: 0 | G89: 0
A90: Pumpestationer i underjordiske bygværker (<50 m2), Konstruktioner | B90: stk. | C90: 50 | D90: 0 | G90: 0
A91: Pumpestationer i underjordiske bygværker (<50 m2), Mek/El | B91: stk. | C91: 20 | D91: 0 | G91: 0
A92: Pumpestationer i underjordiske bygværker (<50 m2), SRO | B92: stk. | C92: 10 | D92: 0 | G92: 0
A93: Små pumpestationer (<100 l/s) inkl. SRO-anlæg - City
A94: Tryksatte minipumpestationer (husstandssystemer) | B94: stk. | C94: 30 | D94: 0 | G94: 0
A95: Pumpestationer i brønde (< 6,25 m2), Konstruktioner | B95: stk. | C95: 50 | D95: 0 | G95: 0
A96: Pumpestationer i brønde (< 6,25 m2), Mek/EL | B96: stk. | C96: 20 | D96: 0 | G96: 0
A97: Pumpestationer i brønde (< 6,25 m2), SRO | B97: stk. | C97: 10 | D97: 0 | G97: 0
A98: Pumpestationer m. overbygning (< 20 m2), Konstruktioner | B98: stk. | C98: 50 | D98: 0 | G98: 0
A99: Pumpestationer m. overbygning (< 20 m2), Mek/EL | B99: stk. | C99: 20 | D99: 0 | G99: 0
A100: Pumpestationer m. overbygning (< 20 m2), SRO | B100: stk. | C100: 10 | D100: 0 | G100: 0
A101: Pumpestationer i underjordiske bygværker (<50 m2), Konstruktioner | B101: stk. | C101: 50 | D101: 0 | G101: 0
A102: Pumpestationer i underjordiske bygværker (<50 m2), Mek/El | B102: stk. | C102: 20 | D102: 0 | G102: 0
A103: Pumpestationer i underjordiske bygværker (<50 m2), SRO | B103: stk. | C103: 10 | D103: 0 | G103: 0
A104: Små pumpestationer (<100 l/s) inkl. SRO-anlæg - Indre city
A105: Tryksatte minipumpestationer (husstandssystemer) | B105: stk. | C105: 30 | D105: 0 | G105: 0
A106: Pumpestationer i brønde (< 6,25 m2), Konstruktioner | B106: stk. | C106: 50 | D106: 0 | G106: 0
A107: Pumpestationer i brønde (< 6,25 m2), Mek/EL | B107: stk. | C107: 20 | D107: 0 | G107: 0
A108: Pumpestationer i brønde (< 6,25 m2), SRO | B108: stk. | C108: 10 | D108: 0 | G108: 0
A109: Pumpestationer m. overbygning (< 20 m2), Konstruktioner | B109: stk. | C109: 50 | D109: 0 | G109: 0
A110: Pumpestationer m. overbygning (< 20 m2), Mek/EL | B110: stk. | C110: 20 | D110: 0 | G110: 0
A111: Pumpestationer m. overbygning (< 20 m2), SRO | B111: stk. | C111: 10 | D111: 0 | G111: 0
A112: Pumpestationer i underjordiske bygværker (<50 m2), Konstruktioner | B112: stk. | C112: 50 | D112: 0 | G112: 0
A113: Pumpestationer i underjordiske bygværker (<50 m2), Mek/El | B113: stk. | C113: 20 | D113: 0 | G113: 0
A114: Pumpestationer i underjordiske bygværker (<50 m2), SRO | B114: stk. | C114: 10 | D114: 0 | G114: 0
A115: Store pumpestationer: inkl. SRO-anlæg - Land
A116: Kælder | B116: m2 | C116: 75 | D116: 186.87 | E116: 186.87 | F116: 186.87 | G116: 0 | H116: 0
A117: Pumpeinstallation Miljøklasse A (100-300 l/s) - Mek/EL | B117: stk. | C117: 20 | D117: 70 | E117: 35 | F117: 35 | G117: -0.5 | H117: 0 | I117: Justeret jf. vejledning
A118: Pumpeinstallation Miljøklasse A (100-300 l/s) - SRO | B118: stk. | C118: 10 | D118: 35 | E118: 35 | F118: 35 | G118: 0 | H118: 0
A119: Pumpeinstallation Miljøklasse A (300-600 l/s) - Mek/EL | B119: stk. | C119: 20 | D119: 38 | E119: 19 | F119: 19 | G119: -0.5 | H119: 0 | I119: Justeret jf. vejledning
A120: Pumpeinstallation Miljøklasse A (300-600 l/s) - SRO | B120: stk. | C120: 10 | D120: 19 | E120: 19 | F120: 19 | G120: 0 | H120: 0
A121: Pumpeinstallation Miljøklasse A (600-1.000 l/s) - Mek/EL | B121: stk. | C121: 20 | D121: 12 | E121: 4 | F121: 4 | G121: -0.6666666667 | H121: 0 | I121: Justeret jf. vejledning
A122: Pumpeinstallation Miljøklasse A (600-1.000 l/s) - SRO | B122: stk. | C122: 10 | D122: 4 | E122: 4 | F122: 4 | G122: 0 | H122: 0
A123: Pumpeinstallation Miljøklasse A (1.000-1.500 l/s) - Mek/EL | B123: stk. | C123: 20 | D123: 6 | E123: 2 | F123: 2 | G123: -0.6666666667 | H123: 0 | I123: Justeret jf. vejledning
A124: Pumpeinstallation Miljøklasse A (1.000-1.500 l/s) - SRO | B124: stk. | C124: 10 | D124: 2 | E124: 2 | F124: 2 | G124: 0 | H124: 0
A125: Pumpeinstallation Miljøklasse B (100-300 l/s) - Mek/EL | B125: stk. | C125: 20 | D125: 0 | E125: 0 | F125: 0 | G125: 0 | H125: 0
A126: Pumpeinstallation Miljøklasse B (100-300 l/s) - SRO | B126: stk. | C126: 10 | D126: 0 | E126: 0 | F126: 0 | G126: 0 | H126: 0
A127: Pumpeinstallation Miljøklasse B (300-600 l/s) - Mek/EL | B127: stk. | C127: 20 | D127: 0 | E127: 0 | F127: 0 | G127: 0 | H127: 0
A128: Pumpeinstallation Miljøklasse B (300-600 l/s) - SRO | B128: stk. | C128: 10 | D128: 0 | E128: 0 | F128: 0 | G128: 0 | H128: 0
A129: Pumpeinstallation Miljøklasse B (600-1.000 l/s) - Mek/EL | B129: stk. | C129: 20 | D129: 0 | E129: 0 | F129: 0 | G129: 0 | H129: 0
A130: Pumpeinstallation Miljøklasse B (600-1.000 l/s) - SRO | B130: stk. | C130: 10 | D130: 0 | E130: 0 | F130: 0 | G130: 0 | H130: 0
A131: Pumpeinstallation Miljøklasse B (1.000-1.500 l/s) - Mek/EL | B131: stk. | C131: 20 | D131: 0 | E131: 0 | F131: 0 | G131: =IF(D131="",IF(E131>0,"Ny data",IF(E131="","",0)),IF(D131=0,IF(E131=0,0,"Ny data"),(E131-D131)/D131)) -> 0 | H131: =IF(E131="",IF(F131>0,"Ny data",IF(F131="","",0)),IF(E131=0,IF(F131=0,0,"Ny data"),(F131-E131)/E131)) -> 0
A132: Pumpeinstallation Miljøklasse B (1.000-1.500 l/s) - SRO | B132: stk. | C132: 10 | D132: 0 | E132: 0 | F132: 0 | G132: 0 | H132: 0
A133: Overbygning | B133: m2 | C133: 75 | D133: 70 | E133: 70 | F133: 70 | G133: 0 | H133: 0
A134: Store pumpestationer: inkl. SRO-anlæg - By
A135: Kælder | B135: m2 | C135: 75 | D135: 27.07 | E135: 27.07 | F135: 27.07 | G135: 0 | H135: 0
A136: Pumpeinstallation Miljøklasse A (100-300 l/s) - Mek/EL | B136: stk. | C136: 20 | D136: 40 | E136: 20 | F136: 20 | G136: -0.5 | H136: 0 | I136: Justeret jf. vejledning
A137: Pumpeinstallation Miljøklasse A (100-300 l/s) - SRO | B137: stk. | C137: 10 | D137: 20 | E137: 20 | F137: 20 | G137: 0 | H137: 0
A138: Pumpeinstallation Miljøklasse A (300-600 l/s) - Mek/EL | B138: stk. | C138: 20 | D138: 12 | E138: 6 | F138: 6 | G138: -0.5 | H138: 0 | I138: Justeret jf. vejledning
A139: Pumpeinstallation Miljøklasse A (300-600 l/s) - SRO | B139: stk. | C139: 10 | D139: 6 | E139: 6 | F139: 6 | G139: 0 | H139: 0
A140: Pumpeinstallation Miljøklasse A (600-1.000 l/s) - Mek/EL | B140: stk. | C140: 20 | D140: 3 | E140: 3 | F140: 3 | G140: 0 | H140: 0
A141: Pumpeinstallation Miljøklasse A (600-1.000 l/s) - SRO | B141: stk. | C141: 10 | D141: 3 | E141: 3 | F141: 3 | G141: 0 | H141: 0
A142: Pumpeinstallation Miljøklasse A (1.000-1.500 l/s) - Mek/EL | B142: stk. | C142: 20 | D142: 16 | E142: 4 | F142: 4 | G142: -0.75 | H142: 0 | I142: Justeret jf. vejledning
A143: Pumpeinstallation Miljøklasse A (1.000-1.500 l/s) - SRO | B143: stk. | C143: 10 | D143: 4 | E143: 4 | F143: 4 | G143: 0 | H143: 0
A144: Pumpeinstallation Miljøklasse B (100-300 l/s) - Mek/EL | B144: stk. | C144: 20 | D144: 0 | E144: 0 | F144: 0 | G144: 0 | H144: 0
A145: Pumpeinstallation Miljøklasse B (100-300 l/s) - SRO | B145: stk. | C145: 10 | D145: 0 | E145: 0 | F145: 0 | G145: 0 | H145: 0
A146: Pumpeinstallation Miljøklasse B (300-600 l/s) - Mek/EL | B146: stk. | C146: 20 | D146: 0 | E146: 0 | F146: 0 | G146: 0 | H146: 0
A147: Pumpeinstallation Miljøklasse B (300-600 l/s) - SRO | B147: stk. | C147: 10 | D147: 0 | E147: 0 | F147: 0 | G147: 0 | H147: 0
A148: Pumpeinstallation Miljøklasse B (600-1.000 l/s) - Mek/EL | B148: stk. | C148: 20 | D148: 0 | E148: 0 | F148: 0 | G148: 0 | H148: 0
A149: Pumpeinstallation Miljøklasse B (600-1.000 l/s) - SRO | B149: stk. | C149: 10 | D149: 0 | E149: 0 | F149: 0 | G149: 0 | H149: 0
A150: Pumpeinstallation Miljøklasse B (1.000-1.500 l/s) - Mek/EL | B150: stk. | C150: 20 | D150: 0 | E150: 0 | F150: 0 | G150: 0 | H150: 0
A151: Pumpeinstallation Miljøklasse B (1.000-1.500 l/s) - SRO | B151: stk. | C151: 10 | D151: 0 | E151: 0 | F151: 0 | G151: 0 | H151: 0
A152: Overbygning | B152: m2 | C152: 75 | D152: 132.5 | E152: 132.5 | F152: 132.5 | G152: 0 | H152: 0
A153: Store pumpestationer: inkl. SRO-anlæg - City
A154: Kælder | B154: m2 | C154: 75 | D154: 0 | G154: 0
A155: Pumpeinstallation Miljøklasse A (100-300 l/s) - Mek/EL | B155: stk. | C155: 20 | D155: 0 | G155: 0
A156: Pumpeinstallation Miljøklasse A (100-300 l/s) - SRO | B156: stk. | C156: 10 | D156: 0 | G156: 0
A157: Pumpeinstallation Miljøklasse A (300-600 l/s) - Mek/EL | B157: stk. | C157: 20 | D157: 0 | G157: 0
A158: Pumpeinstallation Miljøklasse A (300-600 l/s) - SRO | B158: stk. | C158: 10 | D158: 0 | G158: 0
A159: Pumpeinstallation Miljøklasse A (600-1.000 l/s) - Mek/EL | B159: stk. | C159: 20 | D159: 0 | G159: 0
A160: Pumpeinstallation Miljøklasse A (600-1.000 l/s) - SRO | B160: stk. | C160: 10 | D160: 0 | G160: 0
A161: Pumpeinstallation Miljøklasse A (1.000-1.500 l/s) - Mek/EL | B161: stk. | C161: 20 | D161: 0 | G161: 0
A162: Pumpeinstallation Miljøklasse A (1.000-1.500 l/s) - SRO | B162: stk. | C162: 10 | D162: 0 | G162: 0
A163: Pumpeinstallation Miljøklasse B (100-300 l/s) - Mek/EL | B163: stk. | C163: 20 | D163: 0 | G163: 0
A164: Pumpeinstallation Miljøklasse B (100-300 l/s) - SRO | B164: stk. | C164: 10 | D164: 0 | G164: 0
A165: Pumpeinstallation Miljøklasse B (300-600 l/s) - Mek/EL | B165: stk. | C165: 20 | D165: 0 | G165: 0
A166: Pumpeinstallation Miljøklasse B (300-600 l/s) - SRO | B166: stk. | C166: 10 | D166: 0 | G166: 0
A167: Pumpeinstallation Miljøklasse B (600-1.000 l/s) - Mek/EL | B167: stk. | C167: 20 | D167: 0 | G167: 0
A168: Pumpeinstallation Miljøklasse B (600-1.000 l/s) - SRO | B168: stk. | C168: 10 | D168: 0 | G168: 0
A169: Pumpeinstallation Miljøklasse B (1.000-1.500 l/s) - Mek/EL | B169: stk. | C169: 20 | D169: 0 | G169: 0
A170: Pumpeinstallation Miljøklasse B (1.000-1.500 l/s) - SRO | B170: stk. | C170: 10 | D170: 0 | G170: 0
A171: Overbygning | B171: m2 | C171: 75 | D171: 0 | G171: 0
A172: Store pumpestationer: inkl. SRO-anlæg - Indre city
A173: Kælder | B173: m2 | C173: 75 | D173: 0 | G173: 0
A174: Pumpeinstallation Miljøklasse A (100-300 l/s) - Mek/EL | B174: stk. | C174: 20 | D174: 0 | G174: 0
A175: Pumpeinstallation Miljøklasse A (100-300 l/s) - SRO | B175: stk. | C175: 10 | D175: 0 | G175: 0
A176: Pumpeinstallation Miljøklasse A (300-600 l/s) - Mek/EL | B176: stk. | C176: 20 | D176: 0 | G176: 0
A177: Pumpeinstallation Miljøklasse A (300-600 l/s) - SRO | B177: stk. | C177: 10 | D177: 0 | G177: 0
A178: Pumpeinstallation Miljøklasse A (600-1.000 l/s) - Mek/EL | B178: stk. | C178: 20 | D178: 0 | G178: 0
A179: Pumpeinstallation Miljøklasse A (600-1.000 l/s) - SRO | B179: stk. | C179: 10 | D179: 0 | G179: 0
A180: Pumpeinstallation Miljøklasse A (1.000-1.500 l/s) - Mek/EL | B180: stk. | C180: 20 | D180: 0 | G180: 0
A181: Pumpeinstallation Miljøklasse A (1.000-1.500 l/s) - SRO | B181: stk. | C181: 10 | D181: 0 | G181: 0
A182: Pumpeinstallation Miljøklasse B (100-300 l/s) - Mek/EL | B182: stk. | C182: 20 | D182: 0 | G182: 0
A183: Pumpeinstallation Miljøklasse B (100-300 l/s) - SRO | B183: stk. | C183: 10 | D183: 0 | G183: 0
A184: Pumpeinstallation Miljøklasse B (300-600 l/s) - Mek/EL | B184: stk. | C184: 20 | D184: 0 | G184: 0
A185: Pumpeinstallation Miljøklasse B (300-600 l/s) - SRO | B185: stk. | C185: 10 | D185: 0 | G185: 0
A186: Pumpeinstallation Miljøklasse B (600-1.000 l/s) - Mek/EL | B186: stk. | C186: 20 | D186: 0 | G186: 0
A187: Pumpeinstallation Miljøklasse B (600-1.000 l/s) - SRO | B187: stk. | C187: 10 | D187: 0 | G187: 0
A188: Pumpeinstallation Miljøklasse B (1.000-1.500 l/s) - Mek/EL | B188: stk. | C188: 20 | D188: 0 | G188: 0
A189: Pumpeinstallation Miljøklasse B (1.000-1.500 l/s) - SRO | B189: stk. | C189: 10 | D189: 0 | G189: 0
A190: Overbygning | B190: m2 | C190: 75 | D190: 0 | G190: 0
A191: Overløbsbygværker - Land
A192: Kælder (< 7 m2) | B192: stk. | C192: 75 | D192: 12 | E192: 12 | F192: 12 | G192: 0 | H192: 0
A193: Kælder (7 - 20 m2) | B193: m2 | C193: 75 | D193: 0 | E193: 0 | F193: 0 | G193: 0 | H193: 0
A194: Kælder (20 - 30 m2) | B194: m2 | C194: 75 | D194: 0 | E194: 0 | F194: 0 | G194: 0 | H194: 0
A195: Installationer (mindre end 7 m2) | B195: stk. | C195: 20 | D195: 10 | E195: 10 | F195: 10 | G195: =IF(D195="",IF(E195>0,"Ny data",IF(E195="","",0)),IF(D195=0,IF(E195=0,0,"Ny data"),(E195-D195)/D195)) -> 0 | H195: =IF(E195="",IF(F195>0,"Ny data",IF(F195="","",0)),IF(E195=0,IF(F195=0,0,"Ny data"),(F195-E195)/E195)) -> 0
A196: Installationer, Miljøklasse A. (7-20 m2) - Mek/EL | B196: stk. | C196: 20 | D196: 2 | E196: 2 | F196: 2 | G196: 0 | H196: 0
A197: Installationer, Miljøklasse A. (7-20 m2) - SRO | B197: stk. | C197: 10 | D197: 2 | E197: 2 | F197: 2 | G197: 0 | H197: 0
A198: Installationer, Miljøklasse A. (20-30 m2) - Mek/EL | B198: stk. | C198: 20 | D198: 0 | E198: 0 | F198: 0 | G198: 0 | H198: 0
A199: Installationer, Miljøklasse A. (20-30 m2) - SRO | B199: stk. | C199: 10 | D199: 0 | E199: 0 | F199: 0 | G199: 0 | H199: 0
A200: Installationer, Miljøklasse B. (7-20 m2) - Mek/EL | B200: stk. | C200: 20 | D200: 0 | E200: 0 | F200: 0 | G200: 0 | H200: 0
A201: Installationer, Miljøklasse B. (7-20 m2) - SRO | B201: stk. | C201: 10 | D201: 0 | E201: 0 | F201: 0 | G201: 0 | H201: 0
... 117 more rows

Sheet Fællesfunktionsanlæg
A1: Fællesfunktionsanlæg | B1: Enhed | C1: Standard-levetid | D1: Samlet mængde per 31/12-2022 | E1: Samlet mængde per 31/12-2023 | F1: Samlet mængde per 31/12-2024 | G1: Afvigelse 2022-2023 | H1: Afvigelse 2023-2024 | I1: Bemærkninger
A3: Andre | G3: =IF(D3="",IF(E3>0,"Ny data",IF(E3="","",0)),IF(D3=0,IF(E3=0,0,"Ny data"),(E3-D3)/D3)) ->  | H3: =IF(E3="",IF(F3>0,"Ny data",IF(F3="","",0)),IF(E3=0,IF(F3=0,0,"Ny data"),(F3-E3)/E3)) -> 
A4: Administrationbygninger | B4: m2 | C4: 75 | D4: 923 | E4: 923 | F4: 923 | G4: 0 | H4: 0
A5: Arbejdsplads og kontor | B5: stk. | C5: 5 | D5: 40 | E5: 40 | F5: 40 | G5: 0 | H5: 0
A6: Køretøjer, personbil | B6: stk. | C6: 5 | D6: 2 | E6: 2 | F6: 2 | G6: 0 | H6: 0
A7: Køretøjer, små lastvogne (< 3.500 kg.) | B7: stk. | C7: 5 | D7: 10 | E7: 10 | F7: 11 | G7: 0 | H7: 0.1
A8: Køretøjer, store lastvogne (> 3.500 kg.) | B8: stk. | C8: 5 | D8: 1 | E8: 1 | F8: 1 | G8: 0 | H8: 0
A9: Køretøjer, entreprenørmaskiner | B9: stk. | C9: 5 | D9: 8 | E9: 8 | F9: 8 | G9: 0 | H9: 0
A10: Slamsugere | B10: stk. | C10: 5 | D10: 0 | E10: 0 | F10: 0 | G10: 0 | H10: 0
A11: Værksteder, garager | B11: m2 | C11: 75 | D11: 1708 | E11: 1708 | F11: 1708 | G11: 0 | H11: 0
A12: Solcelleanlæg eksl. Inverter | B12: kWp | C12: 25 | D12: 0 | E12: 0 | F12: 0 | G12: 0 | H12: 0
A13: Inverter til solcelleanlæg | B13: kWp | C13: 10 | D13: 0 | E13: 0 | F13: 0 | G13: 0 | H13: 0
